bitfinex/quotes_BTCUSD_20240818
["timestamp","ask_amount","ask_price","bid_price","bid_amount"]
[1724014736722,1e-08,59935.0,59934.0,2.49141172]
[1724014736941,1e-08,59935.0,59934.0,2.49624992]
[1724014737165,1e-08,59935.0,59934.0,2.13520635]
[1724014737378,1e-08,59935.0,59934.0,2.5053838]
[1724014737586,1e-08,59935.0,59934.0,2.49622295]
[1724014737813,1e-08,59935.0,59934.0,2.50538373]
[1724014739526,1e-08,59935.0,59934.0,1.98512783]
[1724014739737,1e-08,59935.0,59934.0,2.13480718]
[1724014739938,1e-08,59935.0,59934.0,1.98512076]
[1724014740788,1e-08,59935.0,59934.0,1.88655729]
[1724014741015,1e-08,59935.0,59934.0,2.13680304]
[1724014741204,1e-08,59935.0,59934.0,1.98311662]
[1724014741966,1e-08,59935.0,59934.0,1.98511662]
[1724014742954,1e-08,59935.0,59934.0,1.9851282]
[1724014744048,1e-08,59935.0,59934.0,1.98712988]
[1724014744662,1e-08,59935.0,59934.0,1.73057534]
[1724014745183,1e-08,59935.0,59934.0,1.81157534]
[1724014748124,1e-08,59935.0,59934.0,1.73041985]
[1724014748360,1e-08,59935.0,59934.0,1.81982551]
[1724014748721,1e-08,59935.0,59934.0,1.82182551]
[1724014749128,1e-08,59935.0,59934.0,1.82382551]
[1724014749332,1e-08,59936.0,59935.0,0.821551]
[1724014749550,1e-08,59936.0,59935.0,1.57009946]
[1724014749961,1e-08,59936.0,59935.0,1.57009901]
[1724014750187,1e-08,59936.0,59935.0,1.7187044]
[1724014750825,1e-08,59936.0,59935.0,1.73693116]
[1724014751235,1e-08,59936.0,59935.0,1.73293116]
[1724014751647,1e-08,59936.0,59935.0,1.74693116]
[1724014752201,1e-08,59936.0,59935.0,1.64836471]
[1724014752411,1e-08,59936.0,59935.0,1.74693736]
[1724014753785,1e-08,59936.0,59935.0,1.75692398]
[1724014755236,1e-08,59936.0,59935.0,1.75269722]
[1724014760987,1e-08,59936.0,59935.0,1.74353585]
[1724014761191,1e-08,59936.0,59935.0,1.7526998]
[1724014761606,1e-08,59936.0,59935.0,2.27096649]
[1724014761816,1e-08,59936.0,59935.0,1.7526998]
[1724014762022,1e-08,59936.0,59935.0,2.32388779]
[1724014763065,1e-08,59936.0,59935.0,1.80563336]
[1724014763266,1e-08,59936.0,59935.0,2.32588779]
[1724014763526,1e-08,59936.0,59935.0,1.99374124]
[1724014763729,0.14310001,59936.0,59935.0,1.50354449]
[1724014764138,0.14310001,59936.0,59935.0,1.65324897]
[1724014764355,0.14310001,59936.0,59935.0,1.71155491]
[1724014764572,0.14310001,59936.0,59935.0,1.69755638]
[1724014764778,0.14310001,59936.0,59935.0,1.69846388]
[1724014765199,0.14392501,59936.0,59935.0,1.71246388]
[1724014766625,0.14392501,59936.0,59935.0,1.71250203]
[1724014768478,0.14392501,59936.0,59935.0,1.40589387]
[1724014768683,0.14392501,59936.0,59935.0,1.43541936]
[1724014768886,0.14392501,59936.0,59935.0,1.50447288]
[1724014769306,0.14392501,59936.0,59935.0,2.02274677]
[1724014770092,0.14392501,59936.0,59935.0,2.02274688]
[1724014771245,0.14392501,59936.0,59935.0,1.13427735]
[1724014771448,0.14392501,59936.0,59935.0,2.02274576]
[1724014771648,0.14392501,59936.0,59935.0,2.08105231]
[1724014771775,0.14392501,59936.0,59935.0,2.02274622]
[1724014772235,0.14392501,59936.0,59935.0,2.08105235]
[1724014772706,0.14392501,59936.0,59935.0,2.00238291]
[1724014773206,0.14392501,59936.0,59935.0,2.02274624]
[1724014773664,0.14392501,59936.0,59935.0,2.08105223]
[1724014774344,0.14392501,59936.0,59935.0,2.19430078]
[1724014774564,0.14392501,59936.0,59935.0,2.19430089]
[1724014775488,0.14392501,59936.0,59935.0,2.08105303]
[1724014775751,0.14492501,59936.0,59935.0,0.50592211]
[1724014775982,0.14492501,59936.0,59935.0,0.58689517]
[1724014776203,0.26171601,59936.0,59935.0,0.0575106]
[1724014776424,0.26171601,59936.0,59935.0,0.10746007]
[1724014776595,0.49529801,59936.0,59935.0,0.0435106]
[1724014776965,0.49529801,59936.0,59935.0,0.0575106]
[1724014777170,0.96246201,59936.0,59935.0,0.03714723]
[1724014777437,0.96246201,59936.0,59935.0,0.02314723]
[1724014777642,0.96246201,59936.0,59935.0,0.00914723]
[1724014777793,0.96246201,59936.0,59935.0,0.0149075]
[1724014777996,0.96246201,59936.0,59935.0,0.0289075]
[1724014778331,0.96246201,59936.0,59935.0,0.0009075]
[1724014778593,0.96246201,59936.0,59935.0,0.0029075]
[1724014779510,0.96246201,59936.0,59935.0,0.0009075]
[1724014779722,0.98546201,59936.0,59935.0,0.0039075]
[1724014780128,0.98546201,59936.0,59935.0,0.0009075]
[1724014780510,0.98546201,59936.0,59935.0,0.0019075]
[1724014780713,0.96246201,59936.0,59935.0,0.0019075]
[1724014781298,0.72888001,59936.0,59935.0,0.0019075]
[1724014782937,0.14392501,59936.0,59935.0,0.0019075]
[1724014783073,0.00082501,59936.0,59935.0,0.03025831]
[1724014783290,0.00082501,59936.0,59935.0,0.14705131]
[1724014783502,0.00082501,59936.0,59935.0,0.12699021]
[1724014783944,0.00082501,59936.0,59935.0,0.12599021]
[1724014784541,0.00082501,59936.0,59935.0,0.13199021]
[1724014784763,0.00082501,59936.0,59935.0,0.13699021]
[1724014784963,0.00082501,59936.0,59935.0,0.13099021]
[1724014785175,0.00082501,59936.0,59935.0,0.12599021]
[1724014785343,0.00082501,59936.0,59935.0,0.13599021]
[1724014786867,0.00082501,59936.0,59935.0,0.38057621]
[1724014788085,0.00082501,59936.0,59935.0,0.22425788]
[1724014788873,0.00082501,59936.0,59935.0,0.03019721]
[1724014792071,0.00082501,59936.0,59935.0,0.14699021]
[1724014792475,0.00082501,59936.0,59935.0,0.38057621]
[1724014793312,0.00082501,59936.0,59935.0,0.14699021]
[1724014799233,0.00082501,59936.0,59935.0,0.16736383]
[1724014800279,0.00082501,59936.0,59935.0,0.05057083]
[1724014801444,0.00082501,59936.0,59935.0,0.16736383]
[1724014801445,0.13892501,59936.0,59935.0,0.16736383]
[1724014802027,0.13892501,59936.0,59935.0,0.40094983]
[1724014802274,0.00082501,59936.0,59935.0,0.40094983]
[1724014802663,0.00082501,59936.0,59935.0,0.16736383]
[1724014803697,0.00082501,59936.0,59935.0,0.21565036]
[1724014803905,0.00082501,59936.0,59935.0,0.16736383]
[1724014804512,0.00082501,59936.0,59935.0,0.47974983]
[1724014804939,0.00082501,59936.0,59935.0,0.24616383]
[1724014805144,0.00082501,59936.0,59935.0,0.16736383]
[1724014805557,0.00082501,59936.0,59935.0,0.18773779]
[1724014805772,0.00082501,59936.0,59935.0,0.167364]
[1724014806226,0.13842501,59936.0,59935.0,0.050571]
[1724014808446,0.13842501,59936.0,59935.0,0.06739825]
[1724014810213,0.22182501,59936.0,59935.0,0.04702446]
[1724014810405,0.22182501,59936.0,59935.0,0.06740061]
[1724014810615,0.33861601,59936.0,59935.0,0.03019721]
[1724014810817,0.33861601,59936.0,59935.0,0.05057336]
[1724014814865,0.33861601,59936.0,59935.0,0.03019721]
[1724014815074,0.33861601,59936.0,59935.0,0.0505724]
[1724014817263,0.57319801,59936.0,59935.0,0.0505724]
[1724014820426,0.57319801,59936.0,59935.0,0.06820272]
[1724014820630,0.57319801,59936.0,59935.0,0.0505724]
[1724014821011,0.57319801,59936.0,59935.0,0.03019721]
[1724014821262,0.57319801,59936.0,59935.0,0.0505825]
[1724014823516,0.57319801,59936.0,59935.0,0.03019721]
[1724014823722,0.57319801,59936.0,59935.0,0.05058246]
[1724014823946,0.57319801,59936.0,59935.0,0.03019721]
[1724014824174,0.33961601,59936.0,59935.0,0.0505825]
[1724014824379,0.33961601,59936.0,59935.0,0.10051181]
[1724014824605,0.33961601,59936.0,59935.0,0.10051191]
[1724014826221,0.80678001,59936.0,59935.0,0.10056819]
[1724014826428,0.80678001,59936.0,59935.0,0.0505826]
[1724014826429,1.04036201,59936.0,59935.0,0.0505826]
[1724014826598,1.04036201,59936.0,59935.0,0.03019721]
[1724014826799,1.07953274,59936.0,59935.0,0.0219075]
[1724014826997,1.21858601,59936.0,59935.0,0.0219075]
[1724014827265,1.21858601,59936.0,59935.0,0.0119075]
[1724014827544,1.21858601,59936.0,59935.0,0.0059075]
[1724014827755,1.10253274,59936.0,59935.0,0.0119075]
[1724014828099,1.10253274,59936.0,59935.0,0.0059075]
[1724014828510,1.10253274,59936.0,59935.0,0.0079075]
[1724014828934,1.10253274,59936.0,59935.0,0.0029075]
[1724014831226,1.06336201,59936.0,59935.0,0.0029075]
[1724014837818,1.1818146,59936.0,59935.0,0.0029075]
[1724014838029,1.83252601,59936.0,59935.0,0.0029075]
[1724014838365,1.94686113,59936.0,59935.0,0.0029075]
[1724014838566,1.87170045,59936.0,59935.0,0.0029075]
[1724014838766,1.97191469,59936.0,59935.0,0.0029075]
[1724014839159,1.94672379,59936.0,59935.0,0.0029075]
[1724014839513,1.94672451,59936.0,59935.0,0.0029075]
[1724014839802,1.94672451,59936.0,59935.0,0.0009075]
[1724014840038,1.94972451,59936.0,59935.0,0.0019075]
[1724014840248,1.87570045,59936.0,59935.0,0.0019075]
[1724014840626,1.87470045,59936.0,59935.0,0.0019075]
[1724014840966,1.87570045,59936.0,59935.0,0.0029075]
[1724014843411,2.37624045,59936.0,59935.0,0.0029075]
[1724014847263,0.033,59931.0,59930.0,0.00113801]
[1724014847468,1.00411544,59931.0,59930.0,0.00113801]
[1724014847705,1.84231844,59931.0,59930.0,0.00113801]
[1724014847875,2.19891944,59931.0,59930.0,0.00113801]
[1724014848285,2.20091944,59931.0,59930.0,0.00113801]
[1724014848490,2.36109015,59931.0,59930.0,0.00113801]
[1724014849650,2.36809015,59931.0,59930.0,0.00213801]
[1724014850521,2.38009015,59931.0,59930.0,0.00313801]
[1724014852341,1.90531844,59931.0,59930.0,0.00313801]
[1724014852550,1.98531844,59931.0,59930.0,0.00313801]
[1724014852730,1.98631844,59931.0,59930.0,0.00313801]
[1724014852933,1.95724343,59931.0,59930.0,0.00313801]
[1724014853139,1.95624343,59931.0,59930.0,0.00313801]
[1724014853345,1.95524343,59931.0,59930.0,0.00313801]
[1724014853712,1.73484343,59931.0,59930.0,0.00313801]
[1724014853920,1.73484343,59931.0,59930.0,0.14383801]
[1724014853921,1.104542,59931.0,59930.0,0.14383801]
[1724014854349,0.870941,59931.0,59930.0,0.14383801]
[1724014854593,0.63734,59931.0,59930.0,0.14383801]
[1724014854773,0.870941,59931.0,59930.0,0.14383801]
[1724014855341,0.858941,59931.0,59930.0,0.14283801]
[1724014855565,0.50854,59931.0,59930.0,0.15289386]
[1724014855770,0.51854,59931.0,59930.0,0.19254535]
[1724014856004,0.753141,59931.0,59930.0,0.15189386]
[1724014856211,0.753141,59931.0,59930.0,0.01119386]
[1724014856212,0.862941,59931.0,59930.0,0.01119386]
[1724014856415,1.412543,59931.0,59930.0,0.00513801]
[1724014856657,1.412543,59931.0,59930.0,0.00213801]
[1724014856658,1.401543,59931.0,59930.0,0.00213801]
[1724014856871,1.5478973,59931.0,59930.0,0.00113801]
[1724014857096,1.6718973,59931.0,59930.0,0.01013801]
[1724014857336,1.6708973,59931.0,59930.0,0.00313801]
[1724014857832,1.7338973,59931.0,59930.0,0.00113801]
[1724014858047,1.77408222,59931.0,59930.0,0.00113801]
[1724014858531,1.97968222,59931.0,59930.0,0.00113801]
[1724014859615,1.82732792,59931.0,59930.0,0.00113801]
[1724014860063,1.788143,59931.0,59930.0,0.00113801]
[1724014860259,1.827333,59931.0,59930.0,0.00113801]
[1724014860468,1.788143,59931.0,59930.0,0.00113801]
[1724014860695,1.82733302,59931.0,59930.0,0.00113801]
[1724014860932,2.06093402,59931.0,59930.0,0.00113801]
[1724014862136,1.82733302,59931.0,59930.0,0.00113801]
[1724014862925,1.99888756,59931.0,59930.0,0.00113801]
[1724014863266,2.23248856,59931.0,59930.0,0.00113801]
[1724014864113,2.06093402,59931.0,59930.0,0.00113801]
[1724014868175,2.34082399,59931.0,59930.0,0.00113801]
[1724014868480,2.26593402,59931.0,59930.0,0.00113801]
[1724014868684,2.3129103,59931.0,59930.0,0.00113801]
[1724014868889,2.3069103,59931.0,59930.0,0.00113801]
[1724014869093,2.25893402,59931.0,59930.0,0.00113801]
[1724014869388,2.26493402,59931.0,59930.0,0.00213801]
[1724014869594,2.27593402,59931.0,59930.0,0.00313801]
[1724014869799,2.25893402,59931.0,59930.0,0.00113801]
[1724014870001,2.25893402,59931.0,59930.0,0.00213801]
[1724014870210,2.27593402,59931.0,59930.0,0.00313801]
[1724014870414,2.26493402,59931.0,59930.0,0.00213801]
[1724014870819,2.26493402,59931.0,59930.0,0.00313801]
[1724014870820,2.27593402,59931.0,59930.0,0.00313801]
[1724014871232,2.32892969,59931.0,59930.0,0.00313801]
[1724014871968,2.31692969,59931.0,59930.0,0.00113801]
[1724014872239,2.32492969,59931.0,59930.0,0.00213801]
[1724014872557,2.26893402,59931.0,59930.0,0.00213801]
[1724014872946,2.28293402,59931.0,59930.0,0.00313801]
[1724014873098,2.28093402,59931.0,59930.0,0.00313801]
[1724014875007,2.25893402,59931.0,59930.0,0.00113801]
[1724014875217,2.25893402,59931.0,59930.0,0.00213801]
[1724014875417,2.27993402,59931.0,59930.0,0.00313801]
[1724014875638,2.26593402,59931.0,59930.0,0.00213801]
[1724014875836,2.25893402,59931.0,59930.0,0.00113801]
[1724014876036,2.27293402,59931.0,59930.0,0.00313801]
[1724014876321,2.26593402,59931.0,59930.0,0.00213801]
[1724014876510,2.31596275,59931.0,59930.0,0.00213801]
[1724014876725,2.32296275,59931.0,59930.0,0.00213801]
[1724014876958,2.32996275,59931.0,59930.0,0.00213801]
[1724014877587,1.42936175,59931.0,59930.0,0.06843801]
[1724014877789,1.42936175,59931.0,59930.0,0.00213801]
[1724014877790,1.37933302,59931.0,59930.0,0.00213801]
[1724014878158,1.38633302,59931.0,59930.0,0.00113801]
[1724014878359,1.35833302,59931.0,59930.0,0.00113801]
[1724014878519,1.37033302,59931.0,59930.0,0.00213801]
[1724014878720,1.38233302,59931.0,59930.0,0.00213801]
[1724014878937,1.48133302,59931.0,59930.0,0.00113801]
[1724014879404,1.49633302,59931.0,59930.0,0.00213801]
[1724014879610,1.48833302,59931.0,59930.0,0.00213801]
[1724014879766,1.48133302,59931.0,59930.0,0.00113801]
[1724014879973,1.72393402,59931.0,59930.0,0.00113801]
[1724014880236,1.73193402,59931.0,59930.0,0.00213801]
[1724014881094,1.72293402,59931.0,59930.0,0.00213801]
[1724014881250,1.72293402,59931.0,59930.0,0.00113801]
[1724014881251,1.71493402,59931.0,59930.0,0.00113801]
[1724014881452,1.89448856,59931.0,59930.0,0.00113801]
[1724014881673,1.89348856,59931.0,59930.0,0.00213801]
[1724014882114,1.89648856,59931.0,59930.0,0.00113801]
[1724014882324,1.90448856,59931.0,59930.0,0.00213801]
[1724014883223,1.73293402,59931.0,59930.0,0.00213801]
[1724014884647,1.81393402,59931.0,59930.0,0.00213801]
[1724014886799,1.58033302,59931.0,59930.0,0.00213801]
[1724014889351,1.58033302,59931.0,59923.0,0.04895191]
[1724014889352,0.584072,59924.0,59923.0,0.04895191]
[1724014889571,0.840701,59924.0,59923.0,0.04895191]
[1724014890917,0.841701,59924.0,59923.0,0.04895191]
[1724014891365,0.841701,59924.0,59923.0,0.04995191]
[1724014892097,0.840701,59924.0,59923.0,0.04995191]
[1724014892303,0.840701,59924.0,59923.0,0.04895191]
[1724014892505,0.842701,59924.0,59923.0,0.12765191]
[1724014892657,0.843701,59924.0,59923.0,0.12765191]
[1724014894196,0.841701,59924.0,59923.0,0.12765191]
[1724014894448,0.840701,59924.0,59923.0,0.12765191]
[1724014894617,0.843701,59924.0,59923.0,0.12765191]
[1724014895378,0.843701,59924.0,59923.0,0.12855941]
[1724014901104,0.924701,59924.0,59923.0,0.0009075]
[1724014901311,1.425241,59924.0,59923.0,0.0009075]
[1724014904644,1.43545066,59924.0,59923.0,0.0009075]
[1724014905136,1.344241,59924.0,59923.0,0.0009075]
[1724014906511,1.344241,59924.0,59923.0,0.0759075]
[1724014906808,1.345241,59924.0,59923.0,0.0759075]
[1724014907463,1.346066,59924.0,59923.0,0.0759075]
[1724014907855,1.346066,59924.0,59923.0,0.1392075]
[1724014909146,0.504365,59924.0,59923.0,0.15330953]
[1724014909524,0.504365,59924.0,59923.0,0.29051373]
[1724014909723,0.504365,59924.0,59923.0,0.27012553]
[1724014909951,0.504365,59924.0,59923.0,0.29051131]
[1724014910148,0.503365,59924.0,59923.0,0.15959328]
[1724014910401,0.503365,59924.0,59923.0,0.59104228]
[1724014910611,0.504365,59924.0,59923.0,0.82467528]
[1724014910803,0.502365,59924.0,59923.0,0.97982096]
[1724014910973,0.501365,59924.0,59923.0,0.97982096]
[1724014911383,0.503365,59924.0,59923.0,0.96714704]
[1724014911583,0.503365,59924.0,59923.0,0.90177215]
[1724014911934,0.501365,59924.0,59923.0,0.79362431]
[1724014912317,0.502365,59924.0,59923.0,0.79362431]
[1724014912794,0.501365,59924.0,59923.0,0.79362431]
[1724014913165,0.502365,59924.0,59923.0,0.79662431]
[1724014913381,0.502365,59924.0,59923.0,0.79661905]
[1724014913578,0.502365,59924.0,59923.0,0.74667002]
[1724014913791,0.502365,59924.0,59923.0,0.74367002]
[1724014913792,0.501365,59924.0,59923.0,0.74367002]
[1724014914001,0.502365,59924.0,59923.0,0.51303702]
[1724014914680,0.503365,59924.0,59923.0,0.51303702]
[1724014914815,0.502365,59924.0,59923.0,0.51303702]
[1724014915704,0.503365,59924.0,59923.0,0.51303702]
[1724014917451,0.501365,59924.0,59923.0,0.51003745]
[1724014917734,0.502365,59924.0,59923.0,0.51303745]
[1724014917935,0.503365,59924.0,59923.0,0.51303745]
[1724014919636,0.503365,59924.0,59923.0,0.27940445]
[1724014919836,0.503365,59924.0,59923.0,0.51303745]
[1724014920683,0.504365,59924.0,59923.0,0.16258845]
[1724014920896,0.854808,59924.0,59923.0,0.0039075]
[1724014921104,1.400766,59924.0,59923.0,0.0039075]
[1724014921516,0.4456461,59921.0,59920.0,0.0009064]
[1724014921719,0.6792861,59921.0,59920.0,0.0009064]
[1724014923461,0.6812861,59921.0,59920.0,0.0039064]
[1724014923958,0.6802861,59921.0,59920.0,0.0009064]
[1724014924114,0.6812861,59921.0,59920.0,0.0009064]
[1724014924521,1.5794661,59921.0,59920.0,0.0009064]
[1724014925664,1.5804661,59921.0,59920.0,0.0009064]
[1724014926113,1.5794661,59921.0,59920.0,0.0009064]
[1724014926287,1.5804661,59921.0,59920.0,0.0009064]
[1724014932217,1.5812911,59921.0,59920.0,0.0009064]
[1724014937661,1.59016343,59921.0,59920.0,0.0009064]
[1724014937828,1.59516343,59921.0,59920.0,0.0009064]
[1724014938241,1.60216343,59921.0,59920.0,0.0009064]
[1724014938451,1.60316343,59921.0,59920.0,0.0009064]
[1724014938657,1.60216343,59921.0,59920.0,0.0009064]
[1724014939276,1.68316343,59921.0,59920.0,0.0009064]
[1724014943451,1.85471797,59921.0,59920.0,0.0009064]
[1724014943867,1.68316343,59921.0,59920.0,0.0009064]
[1724014951119,1.91680343,59921.0,59920.0,0.0009064]
[1724014951523,1.95664958,59921.0,59920.0,0.0009064]
[1724014952275,0.58419,59912.0,59911.0,0.0066267]
[1724014952477,1.16573,59912.0,59911.0,0.0066267]
[1724014953831,1.16673,59912.0,59911.0,0.0066267]
[1724014954333,1.400406,59912.0,59911.0,0.0066267]
[1724014956417,1.400406,59912.0,59911.0,0.0075342]
[1724014957858,1.41065662,59912.0,59911.0,0.0075342]
[1724014959486,1.47715662,59912.0,59911.0,0.0075342]
[1724014960403,1.400406,59912.0,59911.0,0.0075342]
[1724014964633,1.08573,59912.0,59911.0,0.1491342]
[1724014967793,1.08673,59912.0,59911.0,0.16404762]
[1724014968267,0.50154,59912.0,59911.0,0.39109992]
[1724014968500,0.50154,59912.0,59911.0,0.87735448]
[1724014968729,0.502365,59912.0,59911.0,0.95233714]
[1724014968996,0.502365,59912.0,59911.0,1.24775427]
[1724014969700,0.501365,59912.0,59911.0,1.24775427]
[1724014970173,0.502365,59912.0,59911.0,1.15184085]
[1724014970459,0.502365,59912.0,59911.0,1.22682801]
[1724014970908,0.502365,59912.0,59911.0,1.30782678]
[1724014971414,0.502365,59912.0,59911.0,1.27348407]
[1724014971676,0.502365,59912.0,59911.0,1.27348019]
[1724014971907,0.503365,59912.0,59911.0,1.27748019]
[1724014972398,0.503365,59912.0,59911.0,0.90708163]
[1724014972782,0.503365,59912.0,59911.0,1.27747988]
[1724014972947,0.503365,59912.0,59911.0,1.27747957]
[1724014973348,0.503365,59912.0,59911.0,0.90708132]
[1724014974549,0.503365,59912.0,59911.0,1.65121648]
[1724014974826,0.503365,59912.0,59911.0,1.6105641]
[1724014974971,0.503365,59912.0,59911.0,1.71054698]
[1724014975390,0.503365,59912.0,59911.0,1.55583966]
[1724014975587,0.503365,59912.0,59911.0,1.61055366]
[1724014976378,0.503365,59912.0,59911.0,1.71042622]
[1724014977639,0.503365,59912.0,59911.0,1.61055366]
[1724014978773,0.503365,59912.0,59911.0,1.47049437]
[1724014978988,0.503365,59912.0,59911.0,0.59229632]
[1724014979186,0.503365,59912.0,59911.0,0.51740974]
[1724014980060,0.503365,59912.0,59911.0,0.28373074]
[1724014980287,0.504365,59912.0,59911.0,0.08819174]
[1724014980460,0.504365,59912.0,59911.0,0.0881972]
[1724014981264,0.621203,59912.0,59911.0,0.0049075]
[1724014981612,0.503365,59912.0,59911.0,0.0049075]
[1724014981921,0.503365,59912.0,59911.0,0.0119075]
[1724014981922,0.504365,59912.0,59911.0,0.0119075]
[1724014982370,0.503365,59912.0,59911.0,0.0049075]
[1724014982574,0.502365,59912.0,59911.0,0.0009075]
[1724014982772,0.502365,59912.0,59911.0,0.0059075]
[1724014982971,0.502365,59912.0,59911.0,0.0119075]
[1724014982972,0.503365,59912.0,59911.0,0.0119075]
[1724014983198,0.503365,59912.0,59911.0,0.0009075]
[1724014983606,0.504365,59912.0,59911.0,0.0069075]
[1724014983776,0.502365,59912.0,59911.0,0.0009075]
[1724014983959,0.502365,59912.0,59911.0,0.0049075]
[1724014984422,0.502365,59912.0,59911.0,0.0009075]
[1724014984556,0.503365,59912.0,59911.0,0.1247465]
[1724014984959,0.502365,59912.0,59911.0,0.0009075]
[1724014985363,0.502365,59912.0,59911.0,0.0059075]
[1724014985786,0.503365,59912.0,59911.0,0.0069075]
[1724014986180,0.504365,59912.0,59911.0,0.0139075]
[1724014986821,0.504365,59912.0,59911.0,0.03430168]
[1724014989015,0.504365,59912.0,59911.0,0.0139075]
[1724014991843,0.504365,59912.0,59911.0,0.1307465]
[1724014992078,0.504365,59912.0,59911.0,0.20237535]
[1724014992567,0.504365,59912.0,59911.0,0.08553635]
[1724014992795,0.504365,59912.0,59911.0,0.0343029]
[1724014996101,0.504365,59912.0,59911.0,0.0139075]
[1724014996354,0.504365,59912.0,59911.0,0.03430119]
[1724014997331,0.503365,59912.0,59911.0,0.76639819]
[1724014997570,0.503365,59912.0,59911.0,0.87950121]
[1724014997810,0.503365,59912.0,59911.0,0.76639819]
[1724014998672,0.503365,59912.0,59911.0,0.38481919]
[1724014998882,0.503365,59912.0,59911.0,0.03430119]
[1724014998883,0.758803,59912.0,59911.0,0.03430119]
[1724014999085,0.758803,59912.0,59911.0,0.0139075]
[1724014999086,0.992479,59912.0,59911.0,0.0139075]
[1724014999743,1.226155,59912.0,59911.0,0.0139075]
[1724015001519,0.992479,59912.0,59911.0,0.0139075]
[1724015002178,1.226155,59912.0,59911.0,0.0139075]
[1724015003189,0.992479,59912.0,59911.0,0.0139075]
[1724015003596,1.226155,59912.0,59911.0,0.0139075]
[1724015003844,0.992479,59912.0,59911.0,0.0139075]
[1724015007428,0.854879,59912.0,59911.0,0.0139075]
[1724015009075,0.504365,59912.0,59911.0,0.2749465]
[1724015009532,0.503365,59912.0,59911.0,0.58798699]
[1724015009712,0.503365,59912.0,59911.0,0.82166599]
[1724015011673,0.503365,59912.0,59911.0,0.76270194]
[1724015014431,0.503365,59912.0,59911.0,0.15114394]
[1724015014771,0.503365,59912.0,59911.0,0.38482294]
[1724015014968,0.503365,59912.0,59911.0,0.84370194]
[1724015015162,0.503365,59912.0,59911.0,0.89367161]
[1724015015367,0.503365,59912.0,59911.0,0.99827978]
[1724015015768,0.503365,59912.0,59911.0,1.04824657]
[1724015016894,0.503365,59912.0,59911.0,0.99827978]
[1724015017093,0.503365,59912.0,59911.0,0.94353551]
[1724015017316,0.503365,59912.0,59911.0,0.99827534]
[1724015017515,0.503365,59912.0,59911.0,1.23195434]
[1724015017723,0.503365,59912.0,59911.0,1.92191461]
[1724015017929,0.503365,59912.0,59911.0,2.15559361]
[1724015018133,0.503365,59912.0,59911.0,2.21397058]
[1724015018332,0.503365,59912.0,59911.0,2.21397046]
[1724015018541,0.502365,59912.0,59911.0,2.29937176]
[1724015018756,0.001825,59912.0,59911.0,2.15459361]
[1724015018961,0.000825,59921.0,59920.0,0.961954]
[1724015019174,0.000825,59921.0,59920.0,1.46806081]
[1724015019376,0.000825,59921.0,59920.0,1.56790624]
[1724015019621,0.000825,59921.0,59920.0,1.54292186]
[1724015020349,0.000825,59921.0,59920.0,1.50857588]
[1724015020474,0.000825,59921.0,59920.0,1.18058328]
[1724015020678,0.000825,59921.0,59920.0,1.19458328]
[1724015020937,0.000825,59921.0,59920.0,1.2289098]
[1724015021179,0.000825,59921.0,59920.0,1.17418943]
[1724015021380,0.000825,59921.0,59920.0,1.19457197]
[1724015021584,0.000825,59921.0,59920.0,1.17418943]
[1724015021807,0.000825,59921.0,59920.0,1.18057201]
[1724015021937,0.000825,59921.0,59920.0,1.16657201]
[1724015022149,0.000825,59921.0,59920.0,1.18057201]
[1724015022348,0.002825,59921.0,59920.0,1.19457201]
[1724015022550,0.002825,59921.0,59920.0,1.10571096]
[1724015022755,0.001825,59921.0,59920.0,1.10571096]
[1724015022998,0.003825,59921.0,59920.0,1.11971096]
[1724015023150,0.002825,59921.0,59920.0,1.10571096]
[1724015023351,0.003825,59921.0,59920.0,1.12393727]
[1724015023551,0.002825,59921.0,59920.0,1.15981548]
[1724015024445,0.002825,59921.0,59920.0,1.15981599]
[1724015024656,0.002825,59921.0,59920.0,1.10993778]
[1724015025187,0.002825,59921.0,59920.0,1.10571147]
[1724015025398,0.003825,59921.0,59920.0,1.11971252]
[1724015026019,0.002825,59921.0,59920.0,1.10571252]
[1724015026223,0.003825,59921.0,59920.0,1.11971252]
[1724015028459,0.003825,59921.0,59920.0,1.12853454]
[1724015030485,0.003825,59921.0,59920.0,0.40767216]
[1724015030700,0.003825,59921.0,59920.0,0.15364402]
[1724015034890,0.003825,59921.0,59920.0,0.23464402]
[1724015035236,0.003825,59921.0,59920.0,0.25503103]
[1724015035512,0.003825,59921.0,59920.0,0.48867477]
[1724015035665,0.003825,59921.0,59920.0,0.57519735]
[1724015039555,0.003825,59921.0,59920.0,0.48867477]
[1724015040206,0.003825,59921.0,59920.0,0.48867444]
[1724015043068,0.003825,59921.0,59920.0,0.89995077]
[1724015043275,0.003825,59921.0,59920.0,1.13359477]
[1724015043491,0.003825,59921.0,59920.0,1.13359225]
[1724015043730,0.003825,59921.0,59920.0,1.25043686]
[1724015044413,0.003825,59921.0,59920.0,1.25043385]
[1724015045418,0.003825,59921.0,59920.0,1.19572063]
[1724015045665,0.003825,59921.0,59920.0,1.25043371]
[1724015046262,0.003825,59921.0,59920.0,1.28528607]
[1724015047101,0.003825,59921.0,59920.0,1.25043371]
[1724015047323,0.003825,59921.0,59920.0,1.28528738]
[1724015051608,0.003825,59921.0,59920.0,1.34532076]
[1724015051810,0.003825,59921.0,59920.0,1.34432076]
[1724015053345,0.003825,59921.0,59920.0,1.34433311]
[1724015053541,0.003825,59921.0,59920.0,1.29445999]
[1724015053900,0.003825,59921.0,59920.0,1.3443438]
[1724015054519,0.003825,59921.0,59920.0,1.36925995]
[1724015055098,0.003825,59921.0,59920.0,1.33518712]
[1724015055480,0.003825,59921.0,59920.0,1.28528738]
[1724015056108,0.003825,59921.0,59920.0,1.73963139]
[1724015056520,0.003825,59921.0,59920.0,1.66477191]
[1724015057493,0.003825,59921.0,59920.0,1.76458963]
[1724015058061,0.003825,59921.0,59920.0,1.76458926]
[1724015058594,0.003825,59921.0,59920.0,1.76462077]
[1724015059621,0.003825,59921.0,59920.0,1.66480305]
[1724015059924,0.003825,59921.0,59920.0,1.61221196]
[1724015060260,0.003825,59921.0,59920.0,1.51233013]
[1724015060480,0.003825,59921.0,59920.0,1.61221196]
[1724015060682,0.003825,59921.0,59920.0,1.61226761]
[1724015061478,0.003825,59921.0,59920.0,1.51234544]
[1724015061904,0.003825,59921.0,59920.0,1.47745888]
[1724015062222,0.003825,59921.0,59920.0,1.51234917]
[1724015062436,0.003825,59921.0,59920.0,1.51234858]
[1724015062640,0.003825,59921.0,59920.0,1.6372513]
[1724015063635,0.003825,59921.0,59920.0,1.51234858]
[1724015064429,0.003825,59921.0,59920.0,1.52152147]
[1724015064625,0.003825,59921.0,59920.0,1.51234858]
[1724015065611,0.003825,59921.0,59920.0,1.5123447]
[1724015069387,0.003825,59921.0,59920.0,1.63733722]